Cogmind - Beta 15 @@@ ROGUE MODE // 2025.08.23 @ 10:40:35 Player: shapeshifter Result: Destroyed by H-66 Slayer with Heavy Assault Rifle Performance ------------- Evolutions (5) 2500 Regions Visited (13) 2600 Robots Destroyed (116) 580 Value Destroyed (3980) 3980 Prototype IDs (37) 740 Alien Tech Used (0) 0 Bonus (443) 443 TOTAL SCORE: 10843 Bonus ------- Follower Combat Kills 143 Aligned with FarCom 300 Cogmind --------- Core Integrity 0/1000 Matter 270/300 Energy 39/100 System Corruption 0% Temperature Cool (0) Movement Core (1000) Ox19 Location -5/Extension Parts ------- > --- POWER (2) -------- (None) > --- PROPULSION (6) --- (None) > --- UTILITY (6) ------ High-capacity Storage Unit Improved Signal Interpreter Modified TNC Improved Armor Integrity Analyzer Medium Reactive Plating > --- WEAPON (3) ------- (None) > --- INVENTORY (20) --- Power Amplifier Advanced Heat Sink Huge Storage Unit Improved Salvage Targeting Computer Improved Transmission Jammer Experimental Phase Shifter Advanced Recalibrator Drone Bay (2/2) XL Autogun Array Remote Datajack Plasma Cutter Peak State ------------ > --- POWER ------------ Reinforced Fission Core > --- PROPULSION ------- Armored Medium Treads Armored Medium Treads Armored Medium Treads > --- UTILITY ---------- Experimental Heat Sink High-capacity Storage Unit Improved Signal Interpreter Experimental Core Analyzer Improved Armor Integrity Analyzer Graphene Brace > --- WEAPON ----------- Guided Plasma Cannon Minigun 8R-AWN's Boregun > --- INVENTORY -------- Power Amplifier Huge Storage Unit Modified TNC Improved Salvage Targeting Computer Improved Transmission Jammer Experimental Phase Shifter Medium Reactive Plating Advanced Recalibrator Drone Bay XL Autogun Array Remote Datajack Plasma Cutter [Rating: 89] Favorites ----------- Power Improved Ion Engine Engine Improved Ion Engine Power Core Reinforced Fission Core Propulsion Light Treads Treads Light Treads Leg Improved Titanium Leg Wheel Compact Wheel Flight Unit Flight Unit Utility Huge Storage Unit Device Graphene Brace Storage Huge Storage Unit Processor Experimental Core Analyzer Hackware EX Chip 1 Protection Hardened Medium Armor Plating Weapon Heavy Assault Rifle Energy Gun Improved Arc Projector Energy Cannon Improved EM Pulse Cannon Ballistic Gun Heavy Assault Rifle Launcher Missile Launcher Slashing Weapon Ripper Build | -11 -10 -10 -9 -9 -9 -8 -8 -7 -7 -7 -6 -5 -5 ------- Run | Yrd Mat Min Mat Min Exi Min Mat Fac Low Low Fac Fac Ext Slots Evolved 10 | . . . 2 . . . 2 2 . . 2 2 . Power 1 | . . . . . . . . . . . . 1 . Propulsion 4 | . . . 1 . . . . 2 . . 1 . . Utility 4 | . . . . . . . 2 . . . 1 1 . Weapon 1 | . . . 1 . . . . . . . . . . Parts Attached 123 | 7 . . 14 . 29 2 21 15 3 1 11 9 11 Power 13 | 1 . . 2 . 3 1 . 1 1 . 1 1 2 Engine 9 | 1 . . 2 . 2 1 . 1 . . 1 1 . Core 4 | . . . . . 1 . . . 1 . . . 2 Reactor . | . . . . . . . . . . . . . . Propulsion 44 | 2 . . 6 . 15 1 3 8 2 . 2 3 2 Treads 19 | 2 . . 5 . 8 . . . 1 . . 3 . Leg 23 | . . . . . 7 1 3 8 1 . 2 . 1 Wheel 1 | . . . . . . . . . . . . . 1 Hover . | . . . . . . . . . . . . . . Flight 1 | . . . 1 . . . . . . . . . . Utility 31 | 2 . . 3 . 3 . 9 3 . . 5 2 4 Device 9 | 1 . . . . . . 4 . . . 2 1 1 Storage 6 | 1 . . 2 . 2 . . . . . 1 . . Processor 5 | . . . . . . . 2 . . . 1 1 1 Hackware 4 | . . . . . . . 2 1 . . 1 . . Protection 7 | . . . 1 . 1 . 1 2 . . . . 2 Artifact . | . . . . . . . . . . . . . . Weapon 35 | 2 . . 3 . 8 . 9 3 . 1 3 3 3 Energy Gun 4 | . . . . . . . 3 . . . . 1 . Energy Cannon 8 | . . . . . 3 . 3 . . . 1 1 . Ballistic Gun 17 | 2 . . 3 . 2 . 3 2 . . 1 1 3 Ballistic Cannon . | . . . . . . . . . . . . . . Launcher 3 | . . . . . 1 . . . . 1 1 . . Special Weapon . | . . . . . . . . . . . . . . Impact Weapon . | . . . . . . . . . . . . . . Slashing Weapon 3 | . . . . . 2 . . 1 . . . . . Piercing Weapon . | . . . . . . . . . . . . . . Special Melee Weapon . | . . . . . . . . . . . . . . Unidentified Prototypes 14 | . . . . . 3 . 8 2 . . 1 . . Parts Lost 68 | . . . 1 . 12 2 11 1 3 . 9 10 19 Power 9 | . . . . . 1 . 3 . . . 1 1 3 Propulsion 24 | . . . . . 4 2 4 1 1 . 3 4 5 Utility 10 | . . . . . 2 . . . . . 2 1 5 Weapon 25 | . . . 1 . 5 . 4 . 2 . 3 4 6 Highest Loss Streak 9 | . . . 1 . 7 2 3 1 2 . 6 7 9 To Critical Strikes 8 | . . . . . 7 . . . . . . . 1 Average Backups 19 | 2 3 3 13 24 19 30 22 20 21 21 21 16 14 Power 1 | . 1 1 1 1 1 3 1 . 1 2 1 . . Propulsion 3 | 1 2 2 6 11 5 4 1 . . . . . . Utility 8 | . . . 3 6 7 18 13 10 10 11 11 9 10 Weapon 4 | . . . 1 4 3 3 5 7 6 6 5 3 2 Tool/Special . | . . . . . . . . . . . . . . Unused Backups 36 | 1 . . 4 1 10 . 4 3 . . 2 2 9 Power 5 | . . . 2 . 3 . . . . . . . . Propulsion 4 | . . . 1 . 3 . . . . . . . . Utility 19 | . . . . 1 3 . 4 1 . . 2 2 6 Weapon 5 | 1 . . 1 . . . . 2 . . . . 1 Tool/Special 3 | . . . . . 1 . . . . . . . 2 Average Slot Usage (%) 86 | . 100 100 93 100 81 75 85 99 95 98 90 74 55 Engine 7 | . 14 14 10 11 9 9 6 4 . . 4 4 . Core 1 | . . . . . . . . 2 6 7 1 . 4 Treads 13 | . 28 28 31 33 20 . . . . . . 5 10 Leg 18 | . . . . . 12 32 25 37 37 38 32 15 . Device 2 | . 14 14 5 . . . . . . . 5 9 9 Storage 9 | . 14 14 11 11 11 11 9 7 7 7 6 5 5 Processor 6 | . . . . . . . 11 15 15 15 13 16 15 Hackware 1 | . . . . . . . 8 1 . . 2 . . Protection 3 | . . . 5 11 2 . . 5 7 7 2 . . Energy Cannon 2 | . . . . . 1 . 2 4 5 7 2 . 2 Ballistic Gun 11 | . 28 28 28 33 12 . 4 10 5 . 3 1 2 Slashing Weapon 6 | . . . . . 9 22 7 6 7 7 6 2 . Peak Build Rating 89 | 7 7 7 17 18 48 56 69 72 73 69 83 83 89 Average Rating 43 | 4 7 7 12 17 29 47 55 69 68 68 71 74 64 On Entrance 39 | . 7 7 7 17 18 47 48 59 72 66 69 72 66 Naked Turns . | . . . . . . . . . . . . . . Heaviest Build 230 | 14 14 14 99 99 230 210 212 127 110 111 113 109 72 Greatest Support 103 | 40 40 40 60 60 70 70 70 98 98 93 103 81 81 Greatest Overweight (x) 23 | . . . 4 1 5 2 4 3 1 1 1 2 23 Average Overweight (x) 1 | . . . . 1 1 2 1 1 1 1 . . . Largest Inventory Capacity 35 | 8 8 8 25 25 35 35 35 25 25 25 25 25 20 Average Capacity 25 | 7 8 8 17 25 29 35 27 25 25 25 25 20 20 Most Carried 35 | 6 3 3 24 25 35 35 35 25 25 25 25 22 20 Average Carried 21 | 2 3 3 13 24 20 34 26 24 24 24 24 19 17 Final Capacity 35 | 8 8 8 25 25 35 35 25 25 25 25 25 20 20 Final Carried 35 | 3 3 3 23 25 35 35 25 25 24 25 22 18 14 Class Distribution -------------------- 30% | Scavenger-Mutant 26% | Hauler-Mutant 23% | Mutant 14% | Scavenger-Tank 5% | Scavenger-Gunner Dominant Class ---------------- Mutant | -10/Materials Mutant | -10/Mines Scavenger-Mutant | -9/Materials Scavenger-Tank | -9/Mines Hauler-Mutant | -9/Exiles Hauler-Mutant | -8/Mines Scavenger-Mutant | -8/Materials Mutant | -7/Factory Mutant | -7/Lower Caves Scavenger-Mutant | -7/Lower Caves Scavenger-Mutant | -6/Factory Scavenger-Mutant | -5/Factory Scavenger-Mutant | -5/Extension Resources | -11 -10 -10 -9 -9 -9 -8 -8 -7 -7 -7 -6 -5 -5 ----------- Run | Yrd Mat Min Mat Min Exi Min Mat Fac Low Low Fac Fac Ext Matter Collected 3891 | 281 37 . 261 132 692 . 851 560 203 9 202 292 371 Remotely . | . . . . . . . . . . . . . . Salvage Created 5147 | 18 60 . 352 137 633 . 1262 1107 131 . 576 122 749 Parts 305 | 2 3 . 29 11 74 . 74 46 12 . 24 2 28 Haulers Intercepted 5 | . . . 1 . . . 3 1 . . . . . Recyclers Shooed 8 | 1 . . . . . . . 1 . . 2 . 4 Parts Field Recycled . | . . . . . . . . . . . . . . Retrieved Matter . | . . . . . . . . . . . . . . Parts Self-Destructed 13 | . . . . . . . . . 11 2 . . . Prevented 5 | . . . . . . . . . 3 2 . . . Kills | -11 -10 -10 -9 -9 -9 -8 -8 -7 -7 -7 -6 -5 -5 ------- Run | Yrd Mat Min Mat Min Exi Min Mat Fac Low Low Fac Fac Ext Combat Hostiles Destroyed 82 | . . . 7 3 5 . 20 20 5 . 10 2 10 Melee 5 | . . . . . 1 . 3 . . . 1 . . Guns 52 | . . . 6 3 3 . 15 13 2 . 1 2 7 Cannons 17 | . . . . . . . . 7 3 . 5 . 2 AOE 7 | . . . 1 . 1 . 2 . . . 3 . . Classes Destroyed 20 | 1 2 . 3 2 3 . 5 1 1 . 2 . . Worker 1 | . . . . . . . 1 . . . . . . Builder 4 | . . . . . . . 3 . . . 1 . . Tunneler 1 | 1 . . . . . . . . . . . . . Hauler 5 | . . . 1 . . . 3 1 . . . . . Recycler 3 | . . . . . . . 1 . . . 1 . 1 Mechanic 1 | . . . . . . . 1 . . . . . . Operator 4 | . 1 . . . . . . 2 . . 1 . . Turret 1 | . . . . . 1 . . . . . . . . Watcher 8 | . 2 . 2 . . . 2 2 . . . . . Swarmer 12 | . . . 3 . . . 4 2 3 . . . . Grunt 33 | . . . . 2 . . 11 9 1 . 3 2 5 Brawler 3 | . . . . 1 . . . 1 . . . . 1 Sentry 14 | . . . 4 . . . 3 5 . . 2 . . Specialist 2 | . . . . . . . 2 . . . . . . Hunter 7 | . . . . . . . . . . . 3 . 4 Programmer 4 | . . . . . . . . 3 . . 1 . . Heavy 1 | . . . . . . . . . . . 1 . . Zionite 8 | . . . . . 8 . . . . . . . . Master Thief 1 | . . . . . . . . . 1 . . . . Assembled 4 | . . . . . 4 . . . . . . . . Best Kill Streak 8 | 1 2 . 3 3 7 . 8 6 3 . 8 2 3 Combat Bots Only 7 | . . . 3 3 4 . 5 6 3 . 7 2 3 Max Kills in Single Turn 5 | 1 1 . 1 2 2 . 5 1 1 . 2 1 1 Gunslinging 1 | . . . . . 1 . . . . . . . . Exploded 2 | . . . 1 . 1 . 1 . . . 2 . . Melee 1 | . . . . . 1 . 1 . . . 1 . . Uniques/NPCs Destroyed 4 | . . . . . 4 . . . . . . . . 8R-AWN (-9/Exiles) EX-BIN (-9/Exiles) EX-DEC (-9/Exiles) EX-HEX (-9/Exiles) Combat | -11 -10 -10 -9 -9 -9 -8 -8 -7 -7 -7 -6 -5 -5 -------- Run | Yrd Mat Min Mat Min Exi Min Mat Fac Low Low Fac Fac Ext Hostile Shots Fired 1192 | . . . 23 5 120 210 159 178 36 . 146 68 247 Missed 328 | . . . 4 2 29 37 53 65 10 . 49 24 55 Hits 864 | . . . 19 3 91 173 106 113 26 . 97 44 192 Melee 5 | . . . . . 3 . . 1 1 . . . . Projectile 859 | . . . 19 3 88 173 106 112 25 . 97 44 192 Critical Strikes 49 | . . . . . 32 . 4 2 1 . . 4 6 Actively Blocked 9 | . . . . . . . . . . . . 4 5 Part Disruptions 9 | . . . . . 1 8 . . . . . . . Damage Taken 11946 | . . . 359 32 1529 854 1418 1194 422 . 1685 1331 3122 Core 2101 | . . . 43 . 122 181 262 191 18 . 284 171 829 Absorbed by Shields . | . . . . . . . . . . . . . . Ignored by Resistances 132 | . . . . . . . . . . . . . 132 Core Remaining (%) 66 | 100 . 100 . . . 13 52 . . 70 66 . . Volleys Fired 419 | 5 8 . 18 4 79 4 81 58 13 . 33 46 70 Largest 3 | 2 2 . 3 3 3 1 2 3 2 . 2 1 2 Hottest 166 | 40 40 . 66 69 120 30 115 166 97 . 120 120 120 Shots Fired 600 | 10 16 . 54 12 103 4 107 117 24 . 34 46 73 Gun 507 | 10 16 . 54 12 92 4 107 89 12 . 14 43 54 Cannon 85 | . . . . . 9 . . 28 12 . 14 3 19 Launcher 8 | . . . . . 2 . . . . . 6 . . Special . | . . . . . . . . . . . . . . Kinetic 454 | 10 16 . 54 12 92 4 68 89 12 . 14 29 54 Thermal 44 | . . . . . 9 . 10 . . . 5 1 19 Explosive 8 | . . . . . 2 . . . . . 6 . . Electromagnetic 94 | . . . . . . . 29 28 12 . 9 16 . Robot Hit Streak 15 | 9 5 . 15 3 10 1 9 12 3 . 11 11 15 Robot Miss Streak 16 | . 3 . 2 4 5 1 16 7 6 . 4 2 2 Penetration Max 2 | . . . . . 1 . 2 . . . . . 2 Secondary Targets 9 | . . . 2 1 1 . 2 3 . . . . . Max Gunslinging Chain 1 | . . . 1 1 1 . 1 1 . . . . . Shots Hit Robots 457 | 9 9 . 35 5 87 22 76 97 16 . 23 33 45 Core Hits 314 | 2 5 . 17 5 36 3 68 86 21 . 36 15 20 Critical Kills 12 | . . . 1 . 6 . 1 . . . . . 4 Critical Parts Destroyed 17 | . . . . . 1 1 9 1 . . . 1 4 Critical Strikes 37 | . . . 1 . 10 4 11 2 . . . 1 8 Burn 1 | . . . . . . . 1 . . . . . . Destroy 30 | . . . 1 . 8 1 10 1 . . . 1 8 Corrupt 1 | . . . . . . . . 1 . . . . . Sever 5 | . . . . . 2 3 . . . . . . . Melee Attacks 82 | . . . . . 38 30 5 3 . . 5 1 . Impact . | . . . . . . . . . . . . . . Slashing 82 | . . . . . 38 30 5 3 . . 5 1 . Piercing . | . . . . . . . . . . . . . . Sneak Attacks 1 | . . . . . . . . 1 . . . . . Combat Hostiles . | . . . . . . . . . . . . . . Follow-up Attacks 2 | . . . . . . 2 . . . . . . . Damage Inflicted 11658 | 98 95 . 477 122 2499 586 2042 2117 305 . 1520 521 1276 Guns 6110 | 98 95 . 431 122 918 23 1530 1400 173 . 210 521 589 Cannons 2198 | . . . . . 328 . . 621 132 . 434 . 683 Explosions 1356 | . . . 46 . 96 . 370 36 . . 808 . . Melee 1990 | . . . . . 1157 563 142 60 . . 68 . . Ramming 4 | . . . . . . . . . . . . . 4 Kinetic 5366 | 98 95 . 431 122 918 23 938 1400 173 . 210 369 589 Thermal 1829 | . . . . . 328 . 530 36 . . 252 . 683 Explosive 890 | . . . 46 . 96 . . . . . 748 . . Electromagnetic 1579 | . . . . . . . 432 621 132 . 242 152 . Impact . | . . . . . . . . . . . . . . Slashing 1990 | . . . . . 1157 563 142 60 . . 68 . . Piercing . | . . . . . . . . . . . . . . Highest Corruption 6 | . . . . . 1 6 . 3 3 3 . . . Average Corruption 1 | . . . . . 1 5 . 1 3 3 . . . Corruption Purged . | . . . . . . . . . . . . . . Corruption Blocked . | . . . . . . . . . . . . . . Effects 71 | . . . . . 23 9 . 27 7 5 . . . Message Errors 14 | . . . . . 6 3 . 5 . . . . . Matter Fused 20 | . . . . . 8 1 . 8 . 3 . . . Heat Flow Errors 10 | . . . . . 2 2 . 5 1 . . . . Energy Discharges 4 | . . . . . 1 . . 1 1 1 . . . Parts Rejected 1 | . . . . . . 1 . . . . . . . Data Loss (minor) 11 | . . . . . 2 2 . 4 3 . . . . Data Loss (major) 4 | . . . . . . . . 2 1 1 . . . Misfires 3 | . . . . . 2 . . . 1 . . . . Alerts 4 | . . . . . 2 . . 2 . . . . . Overload Shots . | . . . . . . . . . . . . . . Overflow Damage 162 | . . . 28 . 26 27 2 24 . . 40 . 15 Projectiles 27 | . . . . . . . . 4 . . 8 . 15 Explosions 62 | . . . 28 . . . 2 . . . 32 . . Melee 73 | . . . . . 26 27 . 20 . . . . . Knockbacks . | . . . . . . . . . . . . . . Impact . | . . . . . . . . . . . . . . Kinetic . | . . . . . . . . . . . . . . Secondary . | . . . . . . . . . . . . . . Self-Inflicted Damage 262 | . . . 128 . . . 23 19 . . 90 . 2 Shots 7 | . . . 2 . . . 1 1 . . 3 . . Rammed 1 | . . . . . . . . . . . . . 1 Targets Rammed 1 | . . . . . . . . . . . . . 1 Kicked . | . . . . . . . . . . . . . . Crushed . | . . . . . . . . . . . . . . Highest Temperature 350 | . . . 44 66 251 276 255 277 276 . 350 54 347 Average Temperature 76 | . . . 17 35 66 130 72 68 113 . 155 12 95 Received Heat Transfer 2059 | . . . 54 18 100 . 513 366 81 . 315 297 315 Siege Activations . | . . . . . . . . . . . . . . Martial Activations . | . . . . . . . . . . . . . . Shielding Activations . | . . . . . . . . . . . . . . Robots Disrupted 3 | . . . . . . . 1 . . . . 2 . Combat Hostiles 3 | . . . . . . . 1 . . . . 2 . Robots Corrupted . | . . . . . . . . . . . . . . Combat Hostiles . | . . . . . . . . . . . . . . Parts Fried 8 | . . . . . . . 2 4 1 . 1 . . Impact Corruptions . | . . . . . . . . . . . . . . Robots Melted 1 | . . . . . . . . . . . . . 1 Combat Hostiles 1 | . . . . . . . . . . . . . 1 Parts Melted 7 | . . . . . 1 . . 2 . . . . 4 Heat Transferred 3460 | . . . . . 720 . 720 50 . . 450 . 1520 Parts Sabotaged . | . . . . . . . . . . . . . . Parts Stolen . | . . . . . . . . . . . . . . Parts Stripped . | . . . . . . . . . . . . . . Power Chain Reactions 5 | . . . . . . . 3 1 . . 1 . . Alert | -11 -10 -10 -9 -9 -9 -8 -8 -7 -7 -7 -6 -5 -5 ------- Run | Yrd Mat Min Mat Min Exi Min Mat Fac Low Low Fac Fac Ext Maximum Alert Level 1 | . . . . . . . 1 . . . 1 . . Low Security (%) 91 | 100 100 100 100 100 . 100 53 100 . . 91 100 100 Level 1 8 | . . . . . . . 46 . . . 8 . . Level 2 . | . . . . . . . . . . . . . . Level 3 . | . . . . . . . . . . . . . . Level 4 . | . . . . . . . . . . . . . . Level 5 . | . . . . . . . . . . . . . . High Security . | . . . . . . . . . . . . . . Max Security . | . . . . . . . . . . . . . . Peak Influence 316 | 5 7 . 134 70 . . 316 182 . . 225 98 72 Initial 98 | . . . . . . . . 94 . . . 98 4 Average 51 | . . . 45 7 . . 153 52 . . 31 24 24 Influence Increases 2645 | 5 19 . 325 70 . . 673 583 222 . 385 70 293 Destroy 0b10 Robot/C 1620 | . . . 140 60 . . 400 400 180 . 200 40 200 Destroy 0b10 Robot/NC 135 | 5 15 . 15 . . . 55 25 . . 15 . 5 Destroy Leader 436 | . 4 . 56 10 . . 90 116 30 . 80 10 40 Allied During Kill 12 | . . . . . . . . . 12 . . . . Successful Hack 61 | . . . . . . . . 19 . . 12 16 14 Disable Machine 90 | . . . 60 . . . 15 . . . 15 . . Destroy Structure 126 | . . . 54 . . . 23 8 . . 33 4 4 Lose Combat Pursuer 165 | . . . . . . . 90 15 . . 30 . 30 Influence Decreases 2645 | 5 19 . 325 40 30 . 464 610 368 36 184 261 303 Entered New Map 330 | . . . . . 30 . . 115 68 8 . 103 6 Time Decay 2008 | 5 19 . 315 40 . . 374 475 270 28 138 158 186 Lost Part 293 | . . . 10 . . . 90 10 30 . 46 . 107 Lost Ally 14 | . . . . . . . . 10 . . . . 4 Squads Dispatched 24 | . . . . . . . 3 9 . . 6 3 3 Investigation 3 | . . . . . . . . . . . 1 . 2 Extermination 4 | . . . . . . . . 2 . . 1 1 . Reinforcement 12 | . . . . . . . 3 3 . . 3 2 1 Assault . | . . . . . . . . . . . . . . Garrison 5 | . . . . . . . . 4 . . 1 . . Intercept . | . . . . . . . . . . . . . . Searches Triggered . | . . . . . . . . . . . . . . Construction Impeded 2 | . . . . . . . . 1 . . 1 . . Haulers Reinforced 2 | . . . . . . . . 2 . . . . . Active Scanning Responses . | . . . . . . . . . . . . . . Cargo Convoy Interrupts . | . . . . . . . . . . . . . . Stealth | -11 -10 -10 -9 -9 -9 -8 -8 -7 -7 -7 -6 -5 -5 --------- Run | Yrd Mat Min Mat Min Exi Min Mat Fac Low Low Fac Fac Ext Distress Signals 7 | . . . 1 . . . 3 . . . 1 . 2 Communications Jammed . | . . . . . . . . . . . . . . Distress Signals . | . . . . . . . . . . . . . . Times Spotted 161 | . 3 . 11 7 13 1 41 31 10 . 14 12 18 Peak Tracking Total 10 | . 2 . 2 10 9 1 8 6 4 . 9 4 5 Tactical Retreats 8 | . . . . 1 . . 4 1 . . 1 . 1 Traps | -11 -10 -10 -9 -9 -9 -8 -8 -7 -7 -7 -6 -5 -5 ------- Run | Yrd Mat Min Mat Min Exi Min Mat Fac Low Low Fac Fac Ext Traps Triggered 6 | . . . 3 . . . 1 . . . 1 1 . Indirectly . | . . . . . . . . . . . . . . Trap Hack Attempts . | . . . . . . . . . . . . . . Triggered . | . . . . . . . . . . . . . . Disarmed . | . . . . . . . . . . . . . . Reprogrammed . | . . . . . . . . . . . . . . Reused . | . . . . . . . . . . . . . . Traps Extracted . | . . . . . . . . . . . . . . Installed . | . . . . . . . . . . . . . . Triggered . | . . . . . . . . . . . . . . Machines | -11 -10 -10 -9 -9 -9 -8 -8 -7 -7 -7 -6 -5 -5 ---------- Run | Yrd Mat Min Mat Min Exi Min Mat Fac Low Low Fac Fac Ext Machines Disabled 22 | . . . 4 . 16 . 1 . . . 1 . . Max in Single Turn 3 | . . . 2 . 3 . 1 . . . 1 . . Machines Repaired . | . . . . . . . . . . . . . . Machines Dismantled . | . . . . . . . . . . . . . . Machines Sabotaged . | . . . . . . . . . . . . . . Overloaded Fab Kills . | . . . . . . . . . . . . . . Hacking | -11 -10 -10 -9 -9 -9 -8 -8 -7 -7 -7 -6 -5 -5 --------- Run | Yrd Mat Min Mat Min Exi Min Mat Fac Low Low Fac Fac Ext Machines Accessed 21 | . . . 5 . 2 . 2 3 . . 2 4 3 Terminals 14 | . . . 4 . . . 2 2 . . 1 2 3 Fabricators 1 | . . . . . . . . 1 . . . . . Repair Stations . | . . . . . . . . . . . . . . Recycling Units 4 | . . . 1 . . . . . . . 1 2 . Scanalyzers . | . . . . . . . . . . . . . . Garrison Access . | . . . . . . . . . . . . . . Total Hacks 39 | . . . 12 . 2 . 3 5 . . 5 6 6 Successful 18 | . . . 5 . 2 . 1 3 . . 3 2 2 Failed 21 | . . . 7 . . . 2 2 . . 2 4 4 Catastrophic 8 | . . . 3 . . . 2 . . . . 1 2 Database Lockouts . | . . . . . . . . . . . . . . Manual 17 | . . . 10 . 1 . 3 1 . . 2 . . Terminals 30 | . . . 11 . . . 3 3 . . 3 4 6 Fabricators 2 | . . . . . . . . 2 . . . . . Repair Stations . | . . . . . . . . . . . . . . Recycling Units 5 | . . . 1 . . . . . . . 2 2 . Scanalyzers . | . . . . . . . . . . . . . . Garrison Access . | . . . . . . . . . . . . . . Terminal Hacks 9 | . . . 2 . 2 . . 1 . . 1 1 2 Record 1 | . . . . . 1 . . . . . . . . Open Door 1 | . . . . . . . . . . . . . 1 Branch Access Points 3 | . . . 1 . . . . . . . 1 1 . Registered Components 1 | . . . . . . . . 1 . . . . . Zone Layout 2 | . . . 1 . . . . . . . . . 1 Proto ID Catalog 1 | . . . . . 1 . . . . . . . . Fabricator Hacks 2 | . . . . . . . . 2 . . . . . Network Status 1 | . . . . . . . . 1 . . . . . Build 1 | . . . . . . . . 1 . . . . . Repair Station Hacks . | . . . . . . . . . . . . . . Recycling Unit Hacks 4 | . . . 1 . . . . . . . 2 1 . Report Inventory 3 | . . . 1 . . . . . . . 1 1 . Retrieve Components 1 | . . . . . . . . . . . 1 . . Scanalyzer . | . . . . . . . . . . . . . . Garrison Access Hacks . | . . . . . . . . . . . . . . Unauthorized Hacks 3 | . . . 2 . . . 1 . . . . . . Terminals 3 | . . . 2 . . . 1 . . . . . . Botnet 3 | . . . 2 . . . 1 . . . . . . Fabricators . | . . . . . . . . . . . . . . Repair Stations . | . . . . . . . . . . . . . . Recycling Units . | . . . . . . . . . . . . . . Scanalyzers . | . . . . . . . . . . . . . . Garrison Access . | . . . . . . . . . . . . . . Data Cores Recovered 4 | . 1 . . . . . . 2 . . 1 . . Used 1 | . . . . . . . . . . . 1 . . Hacking Detections 15 | . . . 4 . . . 2 2 . . 2 2 3 Full Trace Events 3 | . . . . . . . . . . . 1 . 2 Feedback Events . | . . . . . . . . . . . . . . Feedback Blocked . | . . . . . . . . . . . . . . Robot Schematics Acquired . | . . . . . . . . . . . . . . Robots Built 1 | . . . . . . . . 1 . . . . . Authchips . | . . . . . . . . . . . . . . Time 116 | . . . . . . . . 116 . . . . . Total Robot Build Rating 3 | . . . . . . . . 3 . . . . . Part Schematics Acquired . | . . . . . . . . . . . . . . Parts Built . | . . . . . . . . . . . . . . Authchips . | . . . . . . . . . . . . . . Time . | . . . . . . . . . . . . . . Total Part Build Rating . | . . . . . . . . . . . . . . Parts Repaired . | . . . . . . . . . . . . . . Time . | . . . . . . . . . . . . . . Parts Recycled . | . . . . . . . . . . . . . . Recycled Matter . | . . . . . . . . . . . . . . Retrieved Matter . | . . . . . . . . . . . . . . Retrieved Components 4 | . . . . . . . . . . . 4 . . Parts Scanalyzed . | . . . . . . . . . . . . . . Part Schematics Acquired . | . . . . . . . . . . . . . . Parts Damaged . | . . . . . . . . . . . . . . Bothacking | -11 -10 -10 -9 -9 -9 -8 -8 -7 -7 -7 -6 -5 -5 ------------ Run | Yrd Mat Min Mat Min Exi Min Mat Fac Low Low Fac Fac Ext Used RIF Installer . | . . . . . . . . . . . . . . Robots Hacked . | . . . . . . . . . . . . . . Non-combat . | . . . . . . . . . . . . . . Combat . | . . . . . . . . . . . . . . Robot Hacks Applied . | . . . . . . . . . . . . . . Relay Couplers Released . | . . . . . . . . . . . . . . Fabnet Peak Effective % . | . . . . . . . . . . . . . . Robots Rewired 1 | . . . . . . . . . . . . 1 . Allies Hacked 1 | . . . . . . . . 1 . . . . . Hacks Repelled . | . . . . . . . . . . . . . . Allies | -11 -10 -10 -9 -9 -9 -8 -8 -7 -7 -7 -6 -5 -5 -------- Run | Yrd Mat Min Mat Min Exi Min Mat Fac Low Low Fac Fac Ext Total Allies 3 | . . . . . . . . 1 . . . 1 1 Largest Group 1 | . . . . . . . . 1 . . . 1 1 Highest-Rated Group 29 | . . . . . . . . 23 . . . 29 25 Highest-Rated Ally 29 | . . . . . . . . 23 . . . 29 25 Total Orders . | . . . . . . . . . . . . . . Ally Attacks 12 | . . . . . . . . . 11 . . 1 . Total Damage 523 | . . . . . . . . . 505 . . 18 . Kills 5 | . . . . . . . . . 5 . . . . Allies Corrupted . | . . . . . . . . . . . . . . Allies Melted 1 | . . . . . . . . . . . . 1 . Turrets Deployed 1 | . . . . . . . . . 1 . . . . Intel | -11 -10 -10 -9 -9 -9 -8 -8 -7 -7 -7 -6 -5 -5 ------- Run | Yrd Mat Min Mat Min Exi Min Mat Fac Low Low Fac Fac Ext Active Infowar (turns) 1331 | 27 189 28 614 . . . . . . . . 455 18 Sensors 455 | . . . . . . . . . . . . 455 . Seismic 858 | 27 189 28 614 . . . . . . . . . . T.N.C. 18 | . . . . . . . . . . . . . 18 Robot Analysis Total . | . . . . . . . . . . . . . . Derelict Logs Recovered 3 | . . . . 1 . . . . 2 . . . . Drone Launches . | . . . . . . . . . . . . . . Drone Recoveries . | . . . . . . . . . . . . . . Exploration | -11 -10 -10 -9 -9 -9 -8 -8 -7 -7 -7 -6 -5 -5 ------------- Run | Yrd Mat Min Mat Min Exi Min Mat Fac Low Low Fac Fac Ext Turns Passed 12051 | 131 189 28 1261 621 3941 513 1179 1574 587 262 625 644 496 Spaces Moved 4658 | 73 105 12 586 253 1323 157 361 630 267 133 250 363 145 Core 20 | 16 . . . . . . . . . . . . 4 Treads 2072 | 57 105 12 585 253 862 . . . . . . 61 137 Legs 2561 | . . . . . 461 157 361 630 267 133 250 302 . Wheels 4 | . . . . . . . . . . . . . 4 Hover . | . . . . . . . . . . . . . . Flight 1 | . . . 1 . . . . . . . . . . Fastest Speed 50 | 50 160 160 160 240 160 273 183 190 196 196 113 117 130 Average Speed 218 | 135 160 160 194 240 265 273 247 202 197 196 192 135 204 Slowest Speed 1200 | 160 160 160 380 240 505 273 450 349 198 196 196 265 1200 Overloaded Moves . | . . . . . . . . . . . . . . Propulsion Burnouts . | . . . . . . . . . . . . . . Robots Hopped . | . . . . . . . . . . . . . . Potential Cave-ins . | . . . . . . . . . . . . . . Cave-ins Triggered . | . . . . . . . . . . . . . . Exploration Rate (%) 30 | 4 16 9 49 41 91 50 37 11 49 19 9 11 27 Regions Visited 13 Branch Regions 7 Pre-discovered Areas 1 | . . . . . 1 . . . . . . . . Known Exits Taken 4 | . . . 1 . . . 1 . . . 1 1 . Unknown Exits Taken 9 | 1 1 1 . 1 1 1 . 1 1 1 . . . Scrap Searched 7 | . . . . 1 . . . . 5 1 . . . Spaces Dug 5 | . . . . . . . . 2 . . 1 2 . Terrain Destroyed 150 | . . . 63 . 17 1 26 5 . . 33 4 1 Melee 4 | . . . . . . . . 2 . . 1 1 . Projectile 22 | . . . . . 5 1 11 . . . 1 3 1 AOE 124 | . . . 63 . 12 . 15 3 . . 31 . . Terrain Rammed . | . . . . . . . . . . . . . . Walls Destroyed . | . . . . . . . . . . . . . . Machines Disabled . | . . . . . . . . . . . . . . Actions | -11 -10 -10 -9 -9 -9 -8 -8 -7 -7 -7 -6 -5 -5 --------- Run | Yrd Mat Min Mat Min Exi Min Mat Fac Low Low Fac Fac Ext Total 5862 | 96 112 21 675 262 1615 198 536 813 305 134 350 472 273 Wait 268 | . . 10 3 . 37 . 28 88 10 . 34 35 23 Move 4645 | 72 104 11 585 252 1322 156 360 629 266 132 249 362 145 Hop . | . . . . . . . . . . . . . . Pick Up 152 | 11 . . 36 4 58 3 12 6 4 1 7 5 5 Fast Attach 31 | . . . 5 . . . 8 4 . 1 5 3 5 Attach 94 | 7 . . 8 . 21 5 18 1 4 . 6 8 16 Detach 22 | . . . . . 6 2 5 . 1 . . 1 7 Swap 62 | . . . 8 . 22 . 7 11 4 . 5 4 1 Drop 86 | 1 . . 12 2 32 . 12 13 3 . 6 5 . Fire 419 | 5 8 . 18 4 79 4 81 58 13 . 33 46 70 Melee 80 | . . . . . 38 28 5 3 . . 5 1 . Ram 1 | . . . . . . . . . . . . . 1 Kick . | . . . . . . . . . . . . . . Crush . | . . . . . . . . . . . . . . Escape Stasis . | . . . . . . . . . . . . . . Rewire 2 | . . . . . . . . . . . . 2 . Trap . | . . . . . . . . . . . . . . Miscellaneous . | . . . . . . . . . . . . . . Route ------- -11/Scrapyard -10/Materials (discovered 2 exits: *Mat / [*Min]) -10/Mines -9/Materials (discovered 3 exits: *Mat / *Min x2) -9/Mines -9/Exiles (discovered 2 exits: [*Min x2]) -8/Mines -8/Materials (discovered 2 exits: *Fac x2) -7/Factory -7/Lower Caves -7/Lower Caves -6/Factory (discovered 4 exits: *Fac x2 / Low x2) -5/Factory (discovered 4 exits: Upp x2 / *Ext x2) -5/Extension History --------- Turn | Location | Event 8 | -11/Scrapyard | Discovered new exit (range 16) 132 | -11/Scrapyard | Entered Materials 132 | -10/Materials | Discovered new exit (range 7) 238 | -10/Materials | Discovered new exit (range 7) 304 | -10/Materials | Build established: Mutant 321 | -10/Materials | Entered Mines 326 | -10/Mines | Discovered new exit (range 7) 349 | -10/Mines | Entered Materials 349 | -9/Materials | Evolved 2 slots: Propulsion x1, Weapon x1 805 | -9/Materials | Identified exit to Mines 846 | -9/Materials | Build established: Scavenger-Gunner 916 | -9/Materials | Discovered new exit (range 14) 1228 | -9/Materials | Build established: Scavenger-Mutant 1610 | -9/Materials | Entered Mines 1617 | -9/Mines | Received a Rocket Launcher from a helpful Derelict 1648 | -9/Mines | Build established: Scavenger-Tank 1792 | -9/Mines | Assembled infested the area 1797 | -9/Mines | Assisted by a Guerilla fighting off Assembled 2029 | -9/Mines | A weapon hastily lodged in a ceiling crevice suddenly fell to the ground 2222 | -9/Mines | Deemed a non-threat by the Exiles lab entrance 2222 | -9/Mines | Discovered new exit (range 5) 2231 | -9/Mines | Entered Exiles 2297 | -9/Exiles | Met 8R-AWN 2318 | -9/Exiles | Discovered new exit (range 14) 2431 | -9/Exiles | Met EX-HEX 2554 | -9/Exiles | Met EX-DEC 2581 | -9/Exiles | Learned location of Zion (-7) 2690 | -9/Exiles | Met EX-BIN 2713 | -9/Exiles | Aligned with FarCom system 2714 | -9/Exiles | Given EX-Vault access code 2751 | -9/Exiles | Opened EX-Vault 2761 | -9/Exiles | Found Gui. Plasma Cannon 2793 | -9/Exiles | Warned to stay clear of 0b10 Research branches 2940 | -9/Exiles | Attacked by the Exiles 3100 | -9/Exiles | Found Prototype Ballistic Gun 3116 | -9/Exiles | Lost 7 parts (3n1u3w) 3172 | -9/Exiles | Destroyed 8R-AWN 3181 | -9/Exiles | Lost 4 parts (1p1n1u1w) 3185 | -9/Exiles | Found Prototype Device 3191 | -9/Exiles | Identified 8R-AWN's Boregun 3359 | -9/Exiles | Build established: Mutant 3484 | -9/Exiles | Destroyed EX-BIN 3562 | -9/Exiles | Destroyed EX-DEC 3611 | -9/Exiles | Destroyed EX-HEX 4126 | -9/Exiles | Build established: Hauler-Mutant 5200 | -9/Exiles | Found XL Autogun Array 5215 | -9/Exiles | Found Modified TNC 5769 | -9/Exiles | Found Prototype Device 5814 | -9/Exiles | Found Deploy-a-Sentry 5822 | -9/Exiles | Found Prototype Processor 6150 | -9/Exiles | Discovered new exit (range 10) 6172 | -9/Exiles | Stole four prototypes: Modified TNC, Gui. Plasma Cannon, XL Autogun Array, Deploy-a-Sentry 6172 | -9/Exiles | Entered Mines 6190 | -8/Mines | ME-RLN came to Exiles' defense 6206 | -8/Mines | Core integrity fell below 50% 6256 | -8/Mines | Core integrity fell below 20% 6277 | -8/Mines | Found Prototype Device 6658 | -8/Mines | Discovered new exit (range 7) 6685 | -8/Mines | Entered Materials 6685 | -8/Materials | Evolved 2 slots: Utility x2 6686 | -8/Materials | Identified exit to Factory 6686 | -8/Materials | Identified Exp. Phase Shifter 6777 | -8/Materials | Identified System Purifier 6778 | -8/Materials | Identified AS-neutralizer No. 17b 6972 | -8/Materials | Lost 3 parts (2p1n) 6983 | -8/Materials | Identified Exp. Core Analyzer 7268 | -8/Materials | Build established: Scavenger-Mutant 7547 | -8/Materials | Discovered exit to Factory (range 8) 7864 | -8/Materials | Entered Factory 7864 | -7/Factory | Evolved 2 slots: Propulsion x2 8340 | -7/Factory | Discovered new exit (range 6) 8390 | -7/Factory | Fabricated M-28 Smith? 8657 | -7/Factory | Build established: Mutant 8987 | -7/Factory | P-60 Hacker assimilated allied IT-Y7A(g) 9028 | -7/Factory | Garrison activated, responded to threat 9266 | -7/Factory | Lost 3 allies 9364 | -7/Factory | Garrison activated, responded to threat 9438 | -7/Factory | Entered Lower Caves 9438 | -7/Lower Caves | Spotted 4W-6XW(f) 9438 | -7/Lower Caves | Spotted 6O-TTT(f) 9440 | -7/Lower Caves | Encountered a Master Thief 9440 | -7/Lower Caves | Encountered a Master Thief 9440 | -7/Lower Caves | DAS Turret deployed 9444 | -7/Lower Caves | Destroyed 4W-6XW(f) 9458 | -7/Lower Caves | Learned location of 1 exit from Factory 9474 | -7/Lower Caves | Learned 12 Factory zone layouts 10003 | -7/Lower Caves | Discovered new exit (range 12) 10025 | -7/Lower Caves | Entered another Lower Caves area 10071 | -7/Lower Caves | Build established: Scavenger-Mutant 10271 | -7/Lower Caves | Discovered new exit (range 9) 10287 | -7/Lower Caves | Entered Factory 10287 | -6/Factory | Evolved 2 slots: Propulsion x1, Utility x1 10288 | -6/Factory | Identified exit to Factory 10326 | -6/Factory | Identified exit to Lower Caves 10445 | -6/Factory | Lost 3 parts (1p1n1w) 10786 | -6/Factory | Garrison activated, responded to threat 10859 | -6/Factory | Destroyed 7 combat bots 10864 | -6/Factory | Lost 6 parts (2n2u2w) 10912 | -6/Factory | Entered another Factory area 10912 | -5/Factory | Evolved 2 slots: Power x1, Utility x1 10969 | -5/Factory | Identified exit to Upper Caves 10969 | -5/Factory | Identified exit to Extension 11111 | -5/Factory | Allied Derelicts emerged from ambush trap array 11410 | -5/Factory | Lost 3 allies 11412 | -5/Factory | Lost 7 parts (3n1u3w) 11556 | -5/Factory | Entered Extension 11688 | -5/Extension | Rescued a captive Derelict 11864 | -5/Extension | Lost 3 parts (1n1u1w) 11948 | -5/Extension | Core integrity fell below 50% 11975 | -5/Extension | Lost 9 parts (1p3n2u3w) 12033 | -5/Extension | Core integrity fell below 20% 12052 | -5/Extension | Destroyed by H-66 Slayer with Heavy Assault Rifle Last Messages --------------- 12022_ Com. Wheel destroyed. 12025_ Penetrated by Slug. 12026_ Lgt. Fission Core destroyed. 12028_ Penetrated by Slug. 12032_ G-50 Soldier destroyed. 12035_ Penetrated by Slug. 12035_ Slug penetrates Wall. 12039_ Penetrated by Slug. 12039_ U-05 Engineer destroyed. 12039_ Graphene Brace destroyed. 12041_ Penetrated by Slug. 12042_ R-10 Processor collects Wheel. 12045_ Penetrated by Slug. 12046_ R-10 Processor collects Wheel. 12048_ Penetrated by Slug. 12048_ Gui. Plasma Cannon destroyed. 12048_ R-10 Processor destroyed. 12048_ Penetrated by Slug. 12051_ Critical hit (Destroy). 12051_ Exp. Heat Sink destroyed. Map ----- +----------------------------------------------------+ | | | | | | | | | | | | | | | | | ?????????????????????????????????????????????????? | | ?????????????????????????????????????????????????? | | ???????########??????????????????????????????????? | | ######## =! #??????????????????????????????????? | | " #??????????????????????????????????? | | ######## #????#######???????????????????????? | | ???????# #????# #???????????????????????? | | ???????# !#????# #???????????????????????? | | ???????# ! #????# #???????????????????????? | | ###########/######## #???????????????????????? | | !% % ^^ ^ #???????????????????????? | | ###########+#### ^^ ^ #???????????????????????? | | ??????# [ #?# ^ w #???????????????????????? | | ??????# #?#^ " " ]* #???????????????????????? | | ??????# #?# "Y" *![#???????????????????????? | | ??????# #?# """!!|=#???????????????????????? | | ??????# ### != !h%### #???????????????????? | | ??????# %;[ =%%=%[@h #???????????????????? | | ??????############" "#########???????????????????? | | ?????????????????#"T"#???????????????????????????? | | ?????????????????#"""#???????????????????????????? | | ?????????????????#####???????????????????????????? | | ?????????????????????????????????????????????????? | | ?????????????????????????????????????????????????? | | ?????????????????????????????????????????????????? | | ?????????????????????????????????????????????????? | | ?????????????????????????????????????????????????? | | ?????????????????????????????????????????????????? | | ?????????????????????????????????????????????????? | | ?????????????????????????????????????????????????? | | ?????????????????????????????????????????????????? | | ?????????????????????????????????????????????????? | | ?????????????????????????????????????????????????? | | ?????????????????????????????????????????????????? | | ?????????????????????????????????????????????????? | | ?????????????????????????????????????????????????? | | ?????????????????????????????????????????????????? | | ?????????????????????????????????????????????????? | | ?????????????????????????????????????????????????? | | ?????????????????????????????????????????????????? | | ?????????????????????????????????????????????????? | | ?????????????????????????????????????????????????? | +----------------------------------------------------+ Best States ------------- Heat Dissipation 66 Energy Generation 19 Energy Capacity 310 Matter Stores 300 Matter Capacity 300 Sight Range 16 Robot Scan Range 15 Terrain Scan Density 10 Armor Coverage 225 Resistance: KI 30 Evasion (%) 55 Targeting Accuracy 6 Core Analysis 8 Armor Integrity Analysis 40 Recoil Reduction 3 Offensive Hacking 10 Defensive Hacking 10 Item Schematics ----------------- None Robot Schematics ------------------ None Fabricated ------------ M-28 Smith | x1 | -7/Factory | Preloaded Repaired ---------- Nothing Alien Tech Used ----------------- None Achievements -------------- None Challenges ------------ None Game ------ Seed DataGodMatterbank Manual? 0 Play Time 01:33:28 Cumulative 188.8 hours Start 2025.08.23 @ 07:52:51 End 2025.08.23 @ 10:40:35 Sessions 5 Manual Loads 0 Difficulty Rogue Special Mode None Game No. 295 Rogue 295 Adventurer 0 Explorer 0 Win Type - Total 4 Types 3/0/1/0/0/0/0/0/0/0 Lore% 79 Gallery% 74 Achievement% 55 Wizard Run 0 Options --------- Layout 1 ASCII 0 Keyboard 0 Movement Mouse Keybinds 0 Fullscreen 1 Font 24/Smallcaps Map View 50x40 Zoom Use 0% Tactical HUD 1 Map Filters NONE Filters NONE Steam 1 RUN: 27765ed4-c1a2-463d-b3e3-572cfb3a87ea